bitfinex-derivatives/quotes_BNBF0:USTF0_20250309
["timestamp","ask_amount","ask_price","bid_price","bid_amount"]
[1741505919339,3.172,585.41,584.78,3.703]
[1741505920439,0.29748675,585.4,584.78,3.703]
[1741505922342,3.172,585.41,584.78,3.703]
[1741505923436,0.29748675,585.4,584.78,3.703]
[1741505924844,0.31418835,585.39,584.78,3.703]
[1741505925139,0.29748675,585.4,584.78,3.703]
[1741505925342,0.31419009,585.39,584.78,3.703]
[1741505925540,0.31419009,585.4,584.78,3.703]
[1741505925742,0.31419009,585.39,584.78,3.703]
[1741505925937,0.31419009,585.38,584.78,3.703]
[1741505926137,0.31418979,585.37,584.78,3.703]
[1741505926338,0.31418979,585.36,584.78,3.703]
[1741505926540,0.29748675,585.37,584.78,3.703]
[1741505926740,0.31418979,585.36,584.78,3.703]
[1741505928643,0.31418979,585.4,584.78,3.703]
[1741505928936,0.31418979,585.39,584.78,3.703]
[1741505929142,0.31418979,585.4,584.78,3.703]
[1741505929341,0.31418979,585.39,584.78,3.703]
[1741505929543,0.29748675,585.38,584.78,3.703]
[1741505929944,0.31418979,585.37,584.78,3.703]
[1741505931537,0.31418979,585.36,584.78,3.703]
[1741505931737,0.31418979,585.4,584.78,3.703]
[1741505931940,0.31418979,585.4,584.78,5.024]
[1741505932542,0.29748675,585.39,584.78,5.024]
[1741505932745,0.31418979,585.38,584.78,5.024]
[1741505933544,0.29748675,585.39,584.78,5.024]
[1741505933743,0.31418799,585.38,584.78,5.024]
[1741505934542,0.31418799,585.4,584.78,5.024]
[1741505934746,0.31418799,585.39,584.78,5.024]
[1741505934947,0.31418799,585.4,584.78,5.024]
[1741505935147,0.31418799,585.39,584.78,5.024]
[1741505935346,0.31418799,585.4,584.78,5.024]
[1741505935647,0.61167474,585.39,584.78,5.024]
[1741505935849,0.31418799,585.38,584.78,5.024]
[1741505938547,1.143,585.37,584.78,5.024]
[1741505938750,0.31418799,585.36,584.78,5.024]
[1741505941553,0.29748929,585.35,584.78,5.024]
[1741505943049,1.143,585.37,584.78,5.024]
[1741505947554,1.302,585.36,584.78,5.024]
[1741505948556,0.672,585.35,584.78,5.024]
[1741505952556,0.29749184,585.34,584.78,5.024]
[1741505952957,1.188,585.33,584.78,5.024]
[1741505965472,0.297516,585.32,584.78,5.024]
[1741505967476,0.672,585.35,584.78,5.024]
[1741505967773,0.29751727,585.31,584.78,5.024]
[1741505968968,0.953,585.3,584.78,5.024]
[1741505970775,0.297516,585.29,584.78,5.024]
[1741505973485,0.953,585.3,584.78,5.024]
[1741505973684,0.297516,585.28,584.78,5.024]
[1741505976481,0.953,585.3,584.78,5.024]
[1741505977681,0.297516,585.29,584.78,5.024]
[1741505978683,0.673,585.28,584.78,5.024]
[1741505979681,1.087,585.27,584.78,5.024]
[1741505988194,2.14,585.27,584.78,5.024]
[1741505989597,2.43751981,585.27,584.78,5.024]
[1741505991397,2.14,585.27,584.78,5.024]
[1741505992699,2.43751981,585.27,584.78,5.024]
[1741505994402,2.14,585.27,584.78,5.024]
[1741505995704,2.43751981,585.27,584.78,5.024]
[1741505997503,2.14,585.27,584.78,5.024]
[1741505997704,2.43751981,585.27,584.78,5.024]
[1741506000507,2.14,585.27,584.78,5.024]
[1741506000809,2.43751981,585.27,584.78,5.024]
[1741506003504,2.14,585.27,584.78,5.024]
[1741506004810,2.43751981,585.27,584.78,5.024]
[1741506006517,2.14,585.27,584.78,5.024]
[1741506007617,2.43751981,585.27,584.78,5.024]
[1741506009520,2.14,585.27,584.78,5.024]
[1741506009914,2.813,585.27,584.78,5.024]
[1741506010613,3.11051981,585.27,584.78,5.024]
[1741506012521,2.813,585.27,584.78,5.024]
[1741506013615,3.11051981,585.27,584.78,5.024]
[1741506015321,2.813,585.27,584.78,5.024]
[1741506016724,3.11051981,585.27,584.78,5.024]
[1741506018426,2.813,585.27,584.78,5.024]
[1741506018628,3.11051981,585.27,584.78,5.024]
[1741506021428,2.813,585.27,584.78,5.024]
[1741506021730,3.11051981,585.27,584.78,5.024]
[1741506024529,2.813,585.27,584.78,5.024]
[1741506024725,3.11051981,585.27,584.78,5.024]
[1741506027326,2.813,585.27,584.78,5.024]
[1741506027731,3.11051981,585.27,584.78,5.024]
[1741506033335,2.813,585.27,584.78,5.024]
[1741506033735,3.11051981,585.27,584.78,5.024]
[1741506036538,2.813,585.27,584.78,5.024]
[1741506036732,3.11051981,585.27,584.78,5.024]
[1741506039439,2.813,585.27,584.78,5.024]
[1741506039639,0.2975249,585.26,584.78,5.024]
[1741506040035,0.2975249,585.26,584.01,1.27712884]
[1741506040240,0.2975249,585.26,577.41,6.09353028]
[1741506040241,0.2975249,585.26,584.03,0.34244816]
[1741506040540,0.2975249,585.26,584.04,0.28667562]
[1741506040749,0.2975249,585.26,584.06,0.34243057]
[1741506040933,0.2975249,585.26,584.07,0.28667562]
[1741506041136,0.2975249,585.26,584.09,0.34241298]
[1741506041443,0.2975249,585.26,584.1,0.28667562]
[1741506041638,0.2975249,585.26,584.12,0.34239539]
[1741506041834,0.2975249,585.26,584.13,0.28667562]
[1741506042034,0.2975249,585.26,584.15,0.34237781]
[1741506042238,0.2975249,585.26,584.16,0.28667562]
[1741506042436,1.27976163,585.56,584.17,0.34236609]
[1741506042632,1.27976163,585.54,584.17,0.34236609]
[1741506042833,0.29756815,585.25,584.18,0.28667562]
[1741506043034,1.27976163,585.54,584.19,0.34235437]
[1741506043341,0.31421401,585.53,584.2,0.28667562]
[1741506043539,3.40121401,585.53,584.21,0.34234265]
[1741506043835,3.40121401,585.53,584.22,0.28667562]
[1741506043836,0.31421401,585.52,584.22,0.28667562]
[1741506044139,0.31421401,585.52,584.23,0.34233093]
[1741506044334,0.29756433,585.51,584.24,0.28667562]
[1741506044532,0.31421401,585.5,584.25,0.34231921]
[1741506044738,1.59397564,585.5,584.26,0.28667562]
[1741506044940,0.31421401,585.49,584.27,0.34230749]
[1741506045138,0.31421401,585.49,584.28,0.28667562]
[1741506045442,0.31421401,585.49,584.29,0.34229577]
[1741506045640,0.29757578,585.48,584.3,0.28667562]
[1741506045839,0.31421401,585.47,584.3,0.28667562]
[1741506046341,0.31421401,585.47,584.29,0.34229577]
[1741506047142,1.27976163,585.38,584.29,0.34229577]
[1741506047334,0.31421401,585.37,584.29,0.34229577]
[1741506048242,1.27976163,585.38,584.29,0.34229577]
[1741506048442,0.3142673,585.36,584.29,0.34229577]
[1741506048639,0.29761523,585.37,584.29,0.34229577]
[1741506049052,0.31426935,585.36,584.29,0.34229577]
[1741506050044,0.31426935,585.36,584.3,0.28677741]
[1741506050244,0.31426935,585.36,584.31,0.34228406]
[1741506050445,0.31426935,585.36,584.32,0.28677741]
[1741506050642,0.31426935,585.36,584.33,0.34227234]
[1741506050946,0.31426935,585.36,584.34,0.28677741]
[1741506051152,0.31426935,585.36,584.35,0.34226063]
[1741506051338,0.31426935,585.36,584.36,0.28677741]
[1741506052140,0.31423482,585.35,584.37,0.28671184]
[1741506052341,0.31423482,585.36,584.36,0.28671184]
[1741506052547,0.31423482,585.35,584.37,0.28671184]
[1741506052746,0.31423482,585.36,584.36,0.28671184]
[1741506052942,0.31423482,585.35,584.37,0.28671184]
[1741506053147,0.31423482,585.36,584.36,0.28671184]
[1741506054543,0.31423482,585.48,584.36,0.28671184]
[1741506054749,0.29756688,585.35,584.36,0.28671184]
[1741506054949,0.31423482,585.34,584.36,0.28671184]
[1741506055149,0.31423482,585.49,584.36,0.28671184]
[1741506055745,0.29755034,585.48,584.36,0.28671184]
[1741506055945,0.31423482,585.47,584.36,0.28671184]
[1741506056648,1.27976163,585.46,584.36,0.28671184]
[1741506056849,0.31423482,585.45,584.36,0.28671184]
[1741506057648,0.29755543,585.44,584.36,0.28671184]
[1741506057853,0.31423482,585.43,584.36,0.28671184]
[1741506058747,1.27976163,585.42,584.36,0.28671184]
[1741506058949,0.31423482,585.41,584.36,0.28671184]
[1741506059151,1.27976163,585.42,584.35,0.34226063]
[1741506059352,0.31421695,585.4,584.37,0.28664655]
[1741506059551,0.31421695,585.39,584.38,0.28664655]
[1741506059752,0.31421695,585.41,584.36,0.28664655]
[1741506059953,0.31421695,585.4,584.37,0.28664655]
[1741506060154,0.31421695,585.41,584.36,0.28664655]
[1741506060354,0.31421695,585.4,584.37,0.28664655]
[1741506060653,1.57477747,585.39,584.38,0.28664655]
[1741506060869,0.31421695,585.38,584.36,0.28664655]
[1741506061651,0.98722967,585.37,584.37,0.28668362]
[1741506061851,0.31422967,585.36,584.36,0.28668362]
[1741506062057,0.31422967,585.36,584.37,0.28668362]
[1741506062353,0.673,585.37,584.35,0.34226063]
[1741506062558,0.31422937,585.36,584.36,0.28668114]
[1741506063649,0.29756688,585.35,584.36,0.28668114]
[1741506063855,0.31422937,585.34,584.36,0.28668114]
[1741506064452,0.31422937,585.34,584.37,1.513]
[1741506064658,0.31422937,585.34,584.38,0.28668114]
[1741506066554,0.31422937,585.36,584.38,0.28668114]
[1741506066755,0.29757197,585.33,584.38,0.28668114]
[1741506066955,0.31422937,585.32,584.38,0.28668114]
[1741506068356,0.31422937,585.32,584.39,1.034]
[1741506068559,0.31422937,585.32,584.4,0.28668114]
[1741506069665,0.31426658,585.31,584.41,0.28669889]
[1741506069964,0.673,585.37,584.4,0.28669889]
[1741506069965,1.27976163,585.35,584.4,0.28669889]
[1741506070155,0.31426658,585.34,584.41,0.28669889]
[1741506070359,1.27976163,585.35,584.39,1.034]
[1741506070659,0.29758978,585.33,584.4,0.28668093]
[1741506070860,0.314268,585.32,584.4,0.28668093]
[1741506072559,1.457,585.32,584.4,0.28668093]
[1741506072759,0.314268,585.31,584.4,0.28668093]
[1741506073067,1.59402963,585.31,584.4,0.28668093]
[1741506073262,0.314268,585.3,584.4,0.28668093]
[1741506073662,0.61186541,585.3,584.4,0.28668093]
[1741506073863,0.314268,585.29,584.4,0.28668093]
[1741506074360,0.314268,585.29,584.4,0.963]
[1741506074860,0.29759741,585.3,584.4,0.963]
[1741506075060,0.31427602,585.29,584.4,0.963]
[1741506075265,1.57735904,585.3,584.4,0.963]
[1741506075461,1.27976163,585.3,584.4,2.016]
[1741506076561,0.29759741,585.29,584.4,2.016]
[1741506078367,1.457,585.32,584.4,2.016]
[1741506079870,0.29759487,585.31,584.4,2.016]
[1741506080963,0.673,585.3,584.4,2.016]
[1741506081764,0.29758978,585.29,584.4,2.016]
[1741506084371,0.673,585.3,584.4,2.016]
[1741506085274,0.31424382,585.29,584.4,2.016]
[1741506085668,0.6118336,585.29,584.4,2.016]
[1741506085875,0.31424382,585.28,584.41,0.28661209]
[1741506087775,0.61183487,585.27,584.41,0.28661209]
[1741506087969,0.31424382,585.26,584.41,0.28661209]
[1741506089069,1.081,585.25,584.41,0.28661209]
[1741506089282,0.31424382,585.24,584.41,0.28661209]
[1741506089777,0.31424382,585.24,584.41,1.74261209]
[1741506089970,0.31424382,585.24,584.42,0.28661209]
[1741506090972,0.31424382,585.24,584.41,1.456]
[1741506091174,0.31424033,585.23,584.42,0.28661884]
[1741506091373,0.31424033,585.24,584.42,0.28661884]
[1741506091576,1.081,585.25,584.42,0.28661884]
[1741506091778,0.31424032,585.24,584.42,0.28661884]
[1741506093182,1.081,585.25,584.41,1.456]
[1741506094684,1.37856688,585.25,584.41,1.456]
[1741506098588,1.37856688,585.25,584.41,2.814]
[1741506099389,0.673,585.24,584.41,2.814]
[1741506100389,0.673,585.24,584.42,0.28648248]
[1741506100890,0.673,585.24,584.41,2.814]
[1741506101091,0.673,585.24,584.42,0.28644506]
[1741506103594,0.673,585.24,584.42,1.71444506]
[1741506103789,0.673,585.24,584.43,0.28644506]
[1741506104993,1.308,585.23,584.43,0.28644506]
[1741506107293,1.308,585.23,584.42,1.428]
[1741506107294,1.308,585.23,584.44,0.28647059]
[1741506107497,1.308,585.23,584.43,0.28647059]
[1741506107697,1.308,585.23,584.44,0.28647059]
[1741506107898,1.308,585.23,584.43,0.28647059]
[1741506109100,1.308,585.23,584.43,1.40047059]
[1741506109299,1.308,585.23,584.44,0.2864285]
[1741506114806,1.308,585.23,584.45,0.34220207]
[1741506115003,1.308,585.23,584.46,0.2864285]
[1741506115305,0.982,585.22,584.46,0.2864285]
[1741506115706,0.982,585.22,584.47,0.949]
[1741506115900,0.982,585.22,584.48,0.2864285]
[1741506118202,0.982,585.22,584.49,0.28620524]
[1741506118400,0.982,585.22,584.48,0.28620524]
[1741506118601,0.982,585.22,584.49,0.28620524]
[1741506118805,0.982,585.22,584.48,0.28620524]
[1741506119908,0.982,585.22,584.49,0.34217865]
[1741506120104,0.982,585.22,584.5,0.28620524]
[1741506120509,0.982,585.22,584.51,0.34216694]
[1741506120705,0.982,585.22,584.52,0.28620524]
[1741506120910,0.982,585.22,584.53,0.34215523]
[1741506121212,0.982,585.22,584.54,0.28620524]
[1741506121510,0.982,585.22,584.55,0.34214352]
[1741506121710,0.982,585.22,584.56,0.28620524]
[1741506121910,0.982,585.22,584.57,0.34213182]
[1741506122210,0.982,585.22,584.58,0.28620524]
[1741506122411,0.982,585.22,584.59,0.34212011]
[1741506122610,0.982,585.22,584.6,0.28620524]
[1741506122812,0.982,585.22,584.61,0.34210841]
[1741506123010,0.982,585.22,584.62,0.28620524]
[1741506123306,0.982,585.22,584.63,0.28607993]
[1741506124213,1.357,585.21,584.63,0.28607993]
[1741506124511,1.357,585.21,584.64,0.34209085]
[1741506124708,1.357,585.21,584.65,0.28607993]
[1741506126311,1.357,585.21,584.66,0.34207915]
[1741506126511,1.357,585.21,584.67,0.28607993]
[1741506126710,1.357,585.21,584.68,0.34206745]
[1741506127012,1.357,585.21,584.69,0.28591432]
[1741506127213,1.357,585.21,584.69,0.62797592]
[1741506127410,1.357,585.21,584.7,0.28591432]
[1741506128014,1.357,585.21,584.71,0.3420499]
[1741506128411,1.357,585.21,584.72,0.28591432]
[1741506128609,1.357,585.21,584.72,0.62795837]
[1741506128814,1.357,585.21,584.73,0.28591432]
[1741506130717,1.357,585.21,584.74,0.34203235]
[1741506130914,1.357,585.21,584.75,0.28591432]
[1741506131110,1.357,585.21,584.76,0.34202065]
[1741506131314,1.357,585.21,584.77,0.28591432]
[1741506131511,1.357,585.21,584.77,0.62792912]
[1741506131716,1.357,585.21,584.78,0.28591432]
[1741506134020,1.357,585.21,584.77,0.3420148]
[1741506134216,1.357,585.21,584.78,0.28585264]
[1741506134920,1.357,585.21,584.79,0.28586364]
[1741506135121,1.357,585.21,584.78,0.28586364]
[1741506135321,1.357,585.21,584.79,0.28586364]
[1741506135517,1.357,585.21,584.78,0.28586364]
[1741506136123,1.357,585.21,584.79,0.34200311]
[1741506147333,0.673,585.27,584.79,0.34200311]
[1741506157545,0.673,585.27,584.8,0.28597419]
[1741506160646,2.645,585.28,584.8,0.28597419]
[1741506161048,2.645,585.28,584.79,0.34200311]
[1741506161347,2.645,585.28,584.8,0.28599859]
[1741506161941,2.645,585.28,584.79,0.34200311]
[1741506162142,2.645,585.28,584.8,0.28602595]
[1741506162849,2.645,585.28,584.79,0.34200311]
[1741506163447,2.645,585.28,584.8,0.28620419]
[1741506164848,2.645,585.28,584.79,0.34200311]
[1741506165048,2.645,585.28,584.8,0.28623888]
[1741506165452,1.293,585.28,584.8,0.28623888]
[1741506165747,1.293,585.28,584.79,0.34200311]
[1741506168458,2.276,585.28,584.79,0.34200311]
[1741506172264,2.26222929,585.28,584.79,0.34200311]
[1741506172460,0.983,585.28,584.79,0.34200311]
[1741506174662,0.983,585.28,584.79,1.27400311]
[1741506174864,0.983,585.28,584.79,2.49600311]
[1741506178970,0.983,585.28,584.79,3.61600311]
[1741506183868,0.983,585.28,584.79,5.05500311]
[1741506184671,0.983,585.28,584.8,0.28545121]
[1741506184866,0.983,585.28,584.81,0.34199141]
[1741506185070,0.983,585.28,584.82,0.28545121]
[1741506185271,0.983,585.28,584.82,0.62743677]
[1741506185570,0.983,585.28,584.83,0.28545121]
[1741506187968,0.983,585.28,584.82,0.34198556]
[1741506188272,0.983,585.28,584.83,0.28543886]
[1741506193977,0.983,585.28,584.84,0.34197387]
[1741506194276,0.983,585.28,584.85,0.28543886]
[1741506194477,0.983,585.28,584.86,0.34196217]
[1741506194677,0.983,585.28,584.87,0.28543886]
[1741506195479,0.983,585.28,584.88,0.28529268]
[1741506195671,0.983,585.28,584.89,0.28529268]
[1741506195875,0.983,585.28,584.9,0.28529268]
[1741506196075,0.983,585.28,584.91,0.28529268]
[1741506196273,0.983,585.28,584.87,0.28529268]
[1741506196477,0.983,585.28,584.88,0.28529268]
[1741506196676,0.983,585.28,584.87,0.28529268]
[1741506196877,0.983,585.28,584.88,0.28529268]
[1741506197079,0.983,585.28,584.87,0.28529268]
[1741506197281,0.983,585.28,584.88,0.28529268]
[1741506197476,0.983,585.28,584.87,0.28529268]
[1741506197680,0.673,585.32,584.87,0.28529268]
[1741506198782,0.673,585.32,584.86,0.34196217]
[1741506198973,0.673,585.32,584.88,0.2852388]
[1741506199176,0.673,585.32,584.89,0.2852388]
[1741506199375,0.673,585.32,584.87,0.2852388]
[1741506199576,0.673,585.32,584.9,0.2852388]
[1741506199781,0.673,585.32,584.91,0.2852388]
[1741506199979,0.673,585.32,584.87,0.2852388]
[1741506200180,0.673,585.32,584.88,0.2852388]
[1741506200479,0.673,585.32,584.89,0.2852388]
[1741506200679,0.673,585.32,584.86,0.34196217]
[1741506200680,0.673,585.32,584.87,0.2852388]
[1741506200875,0.673,585.32,584.86,0.34196217]
[1741506201075,0.673,585.32,584.87,0.28524155]
[1741506202382,0.673,585.32,584.86,0.34196217]
[1741506202580,0.673,585.32,584.88,0.2852392]
[1741506202781,0.673,585.32,584.89,0.2852392]
[1741506202976,0.673,585.32,584.87,0.2852392]
[1741506203177,0.673,585.32,584.88,0.2852392]
[1741506203382,0.673,585.32,584.87,0.2852392]
[1741506203578,0.673,585.32,584.88,0.2852392]
[1741506203777,0.673,585.32,584.89,0.2852392]
[1741506203984,0.673,585.32,584.9,0.2852392]
[1741506204177,0.673,585.32,584.87,0.2852392]
[1741506204382,0.673,585.32,584.88,0.28525371]
[1741506204583,0.673,585.32,584.89,0.28525371]
[1741506204984,0.673,585.32,584.9,0.28525371]
[1741506205179,0.673,585.32,584.87,0.28525371]
[1741506206580,0.673,585.32,584.87,0.62721004]
[1741506206889,0.673,585.32,584.88,0.28525371]
[1741506210690,0.673,585.32,584.89,0.34194463]
[1741506216889,0.673,585.32,584.9,0.28535261]
[1741506217197,0.673,585.32,584.91,0.28535167]
[1741506217395,0.673,585.32,584.9,0.28535167]
[1741506217590,0.673,585.32,584.91,0.28535167]
[1741506217807,0.673,585.32,584.9,0.28535167]
[1741506218099,0.673,585.32,584.91,0.28535167]
[1741506218398,0.673,585.32,584.92,0.28535167]
[1741506218598,0.673,585.32,584.9,0.28535167]
[1741506218799,0.673,585.32,584.89,0.34194463]
[1741506219001,2.27,585.37,584.9,0.28535143]
[1741506220498,2.27,585.37,584.89,0.34194463]
[1741506220698,2.27,585.37,584.9,0.28550772]
[1741506222502,2.27,585.37,584.89,0.34194463]
[1741506222722,2.27,585.37,584.9,0.28547764]
[1741506225607,2.27,585.37,584.91,0.34193294]
[1741506225803,2.27,585.37,584.92,0.28547764]
[1741506226007,2.27,585.37,584.93,0.34192125]
[1741506226203,2.27,585.37,584.94,0.28547764]
[1741506226405,2.27,585.37,584.94,0.62739305]
[1741506226601,2.27,585.37,584.95,0.28547764]
[1741506228906,2.27,585.37,584.95,0.6273872]
[1741506229104,2.27,585.37,584.96,0.28547764]
[1741506229707,2.27,585.37,584.97,0.6272259]
[1741506230004,2.27,585.37,584.98,0.28532803]
[1741506230910,0.673,585.39,584.98,0.28532803]
[1741506231912,0.673,585.39,584.99,0.28534158]
[1741506232212,0.673,585.39,585.0,0.28534158]
[1741506232412,0.673,585.39,584.98,0.28534158]
[1741506232612,0.673,585.39,584.99,0.28534158]
[1741506232810,0.673,585.39,585.0,0.28534158]
[1741506233013,0.673,585.39,584.98,0.28534158]
[1741506233312,0.673,585.39,585.01,0.28534158]
[1741506233514,0.673,585.39,585.02,0.28534158]
[1741506233710,0.673,585.39,584.98,0.28534158]
[1741506233908,0.673,585.39,584.99,0.28534158]
[1741506234109,0.673,585.39,584.98,0.28534158]
[1741506234309,0.673,585.39,584.99,0.28534158]
[1741506234508,0.673,585.39,584.98,0.28534158]
[1741506239515,0.673,585.39,584.97,0.34189787]
[1741506243117,1.921,585.51,584.97,0.34189787]
[1741506246419,0.673,585.5,584.97,0.34189787]
[1741506249525,0.673,585.5,584.98,0.28546007]
[1741506250221,0.673,585.5,584.97,0.34189787]
[1741506250821,0.673,585.5,584.98,0.28545237]
[1741506251024,0.673,585.5,584.97,0.34189787]
[1741506251226,0.673,585.5,584.98,0.28529942]
[1741506253129,0.673,585.5,584.99,1.388]
[1741506254227,0.673,585.5,585.0,0.28534563]
[1741506254824,0.673,585.5,584.99,1.388]
[1741506255027,0.673,585.5,585.0,0.28537813]
[1741506255232,0.673,585.5,584.99,1.388]
[1741506255830,0.673,585.5,585.0,1.186]
[1741506257630,0.673,585.5,585.01,0.91]
[1741506264338,0.673,585.5,585.01,2.256]
[1741506265240,1.5,585.5,585.01,2.256]
[1741506266138,2.638,585.5,585.01,2.256]
[1741506267239,2.638,585.5,585.01,3.189]
[1741506275140,2.638,585.5,585.02,0.28540692]
[1741506275336,2.638,585.5,585.01,4.199]
[1741506275537,1.965,585.5,585.01,4.199]
[1741506278637,2.638,585.5,585.01,4.199]
[1741506295161,2.638,585.5,585.02,0.28538164]
[1741506295360,1.811,585.5,585.02,0.28538164]
[1741506295559,0.673,585.5,585.02,0.28538164]
[1741506300667,1.792,585.51,585.02,0.28538164]
[1741506301369,1.792,585.51,584.98,0.28538164]
[1741506301667,1.792,585.51,584.99,0.28538164]
[1741506302264,1.792,585.51,584.98,0.34189203]
[1741506302461,1.792,585.51,584.99,0.28536582]
[1741506303961,0.673,585.5,584.99,0.28536582]
[1741506304366,0.673,585.5,585.0,3.933]
[1741506304568,0.673,585.5,585.01,0.28536582]
[1741506305669,0.673,585.5,585.0,3.933]
[1741506317975,0.928,585.49,585.0,3.933]
[1741506318876,2.107,585.49,585.0,3.933]
[1741506323182,2.78,585.49,585.0,3.933]
[1741506345800,0.29741302,585.48,585.0,3.933]
[1741506346101,0.29741302,585.48,585.0,0.888]
[1741506348503,2.78,585.49,585.0,0.888]
[1741506348901,0.29741302,585.47,585.0,0.888]
[1741506351503,2.78,585.49,585.0,0.888]
[1741506351703,0.29742827,585.46,585.0,0.888]
[1741506354407,0.29742827,585.46,584.98,3.274]
[1741506354604,2.78,585.49,584.98,3.274]
[1741506354803,1.27976163,585.77,584.98,3.274]
[1741506355006,0.29740031,585.48,584.98,3.274]
[1741506355203,1.27976163,585.77,584.98,3.274]
[1741506355506,1.27976163,586.1,584.98,3.274]
[1741506355706,0.34125034,586.08,584.98,3.274]
[1741506355906,0.29736473,585.76,584.98,3.274]
[1741506356105,0.34125034,586.08,584.98,3.274]
[1741506356507,0.31404573,586.07,584.98,3.274]
[1741506356703,0.34126198,586.06,584.98,3.274]
[1741506356909,0.31404573,586.05,584.98,3.274]
[1741506357109,0.34127363,586.04,584.98,3.274]
[1741506357307,0.31404573,586.03,584.98,3.274]
[1741506357511,0.34128528,586.02,584.99,1.131]
[1741506357912,3.31204798,586.01,584.99,1.131]
[1741506358112,0.6553449,586.0,584.99,1.131]
[1741506358412,2.998,586.01,584.99,1.131]
[1741506358413,0.65535073,585.99,584.99,1.131]
[1741506358611,0.65535655,585.98,584.99,1.131]
[1741506358810,0.65536238,585.97,584.99,1.131]
[1741506359010,0.6553682,585.96,584.99,1.131]
[1741506359211,0.65537403,585.95,584.99,1.131]
[1741506359407,0.34133187,585.94,584.99,1.131]
[1741506359614,0.31404798,585.93,584.99,1.131]
[1741506359813,0.34134352,585.92,584.99,1.131]
[1741506360029,0.31404798,585.91,584.99,1.131]
[1741506360208,0.34135518,585.9,584.99,1.131]
[1741506360412,0.31404251,585.89,584.99,1.131]
[1741506360710,0.65540351,585.89,584.99,1.131]
[1741506361014,0.61138946,585.88,584.99,1.131]
[1741506361411,0.31404251,585.87,584.99,1.131]
[1741506361910,0.31404251,585.88,584.99,1.131]
[1741506362111,0.31404251,585.87,584.99,1.131]
[1741506362308,0.29734822,585.86,584.99,1.131]
[1741506362514,0.31404251,585.85,584.99,1.131]
[1741506366009,1.59380414,585.85,584.99,1.131]
[1741506366213,1.27976163,585.85,584.99,1.131]
[1741506366420,0.31400773,585.84,584.99,1.131]
[1741506368312,0.31401604,585.83,584.99,1.131]
[1741506368516,0.31401604,585.84,585.0,1.167]
[1741506368718,0.31401604,585.83,585.0,1.167]
[1741506368919,0.31401604,585.82,585.0,1.167]
[1741506369124,0.31401604,585.85,585.0,1.167]
[1741506369323,0.31401604,585.84,585.0,1.167]
[1741506369521,0.31401604,585.83,585.0,1.167]
[1741506369718,0.31401604,585.82,585.01,1.033]
[1741506369922,0.31401604,585.81,585.01,1.033]
[1741506370118,0.31401604,585.8,585.01,1.033]
[1741506371625,0.29732916,585.81,585.01,1.033]
[1741506371829,0.31402082,585.8,585.01,1.033]
[1741506372125,1.51802082,585.8,585.01,1.033]
[1741506372326,0.31402082,585.79,585.01,1.033]
[1741506373626,1.204,585.8,585.01,1.033]
[1741506373828,0.31402143,585.79,585.01,1.033]
[1741506377225,0.31402322,585.78,585.01,1.033]
[1741506377420,0.31402322,585.79,585.01,1.033]
[1741506379133,0.61136167,585.78,585.01,1.033]
[1741506379334,0.31402488,585.77,585.01,1.033]
[1741506382144,0.29733933,585.76,585.01,1.033]
[1741506382542,0.31402488,585.75,585.01,1.033]
[1741506383541,0.29733933,585.76,585.01,1.033]
[1741506383542,0.31402031,585.74,585.01,1.033]
[1741506383742,0.31402031,585.75,585.01,1.033]
[1741506383946,0.31402031,585.74,585.01,1.033]
[1741506384240,0.31402031,585.73,585.01,1.033]
[1741506384441,0.29733933,585.76,585.01,1.033]
[1741506384643,0.31401517,585.75,585.01,1.033]